Cogmind - Beta 14 @@@ ROGUE MODE // 2024.08.11 @ 01:55:00 Player: Lillith Result: Smashed by cave-in Performance ------------- Evolutions (0) 0 Regions Visited (2) 400 Robots Destroyed (37) 185 Value Destroyed (654) 654 Prototype IDs (1) 20 Alien Tech Used (0) 0 Bonus (0) 0 TOTAL SCORE: 1259 Bonus ------- None Cogmind --------- Core Integrity 0/250 Matter 205/300 Energy 250/250 System Corruption 4% Temperature Cool (0) Movement Walking (120) Location -10/Subcaves Parts ------- > --- POWER (1) -------- Ion Engine > --- PROPULSION (2) --- Aluminum Leg Aluminum Leg > --- UTILITY (2) ------ Small Storage Unit Gun Armor > --- WEAPON (2+2) ----- Beam Cannon Light Assault Rifle (+) Light Assault Rifle (+) > --- INVENTORY (8) ---- Light Treads Light Treads Huge Storage Unit Structural Scanner Subdweller Optics Improved Terrain Scanner Subdweller Machine Gun Grenade Launcher Peak State ------------ > --- POWER ------------ Ion Engine > --- PROPULSION ------- Aluminum Leg Aluminum Leg > --- UTILITY ---------- Small Storage Unit Gun Armor > --- WEAPON ----------- Beam Cannon Light Assault Rifle Light Assault Rifle Grenade Launcher > --- INVENTORY -------- Light Treads Light Treads Huge Storage Unit Structural Scanner Subdweller Optics Improved Terrain Scanner Grenade Launcher [Rating: 18] Favorites ----------- Power Ion Engine Engine Ion Engine Propulsion Aluminum Leg Leg Aluminum Leg Utility Small Storage Unit Device Structural Scanner Storage Small Storage Unit Protection Gun Armor Weapon Light Assault Rifle Energy Gun Small Laser Energy Cannon Beam Cannon Ballistic Gun Light Assault Rifle Launcher Grenade Launcher Build | -11 -10 -10 ------- Run | Yrd Mat Sub Slots Evolved . | . . . Power . | . . . Propulsion . | . . . Utility . | . . . Weapon . | . . . Parts Attached 23 | 7 13 3 Power 2 | 1 1 . Engine 2 | 1 1 . Core . | . . . Reactor . | . . . Propulsion 7 | 2 5 . Treads . | . . . Leg 7 | 2 5 . Wheel . | . . . Hover . | . . . Flight . | . . . Utility 6 | 2 3 1 Device 2 | 1 1 . Storage 3 | 1 2 . Processor . | . . . Hackware . | . . . Protection 1 | . . 1 Artifact . | . . . Weapon 8 | 2 4 2 Energy Gun 1 | 1 . . Energy Cannon 1 | . 1 . Ballistic Gun 5 | 1 2 2 Ballistic Cannon . | . . . Launcher 1 | . 1 . Special Weapon . | . . . Impact Weapon . | . . . Slashing Weapon . | . . . Piercing Weapon . | . . . Special Melee Weapon . | . . . Unidentified Prototypes 1 | . . 1 Parts Lost 3 | . 2 1 Power . | . . . Propulsion 1 | . 1 . Utility 1 | . 1 . Weapon 1 | . . 1 Highest Loss Streak 1 | . 1 1 To Critical Strikes . | . . . Average Slot Usage (%) 99 | . 99 100 Engine 13 | . 14 11 Leg 26 | . 28 22 Device 9 | . 13 . Storage 13 | . 14 11 Protection 3 | . . 10 Energy Gun 5 | . 7 . Energy Cannon 7 | . 5 11 Ballistic Gun 12 | . 8 20 Launcher 7 | . 5 11 Peak Build Rating 18 | 8 8 18 Average Rating 10 | 6 7 17 On Entrance 5 | . 8 8 Naked Turns . | . . . Heaviest Build 22 | 14 17 22 Greatest Support 20 | 20 20 20 Greatest Overweight (x) 4 | 4 1 1 Average Overweight (x) . | . . . Largest Inventory Capacity 25 | 8 25 8 Average Capacity 7 | 7 8 8 Most Carried 9 | 8 9 8 Average Carried 7 | 4 7 7 Final Capacity 8 | 8 8 8 Final Carried 8 | 7 8 8 Class Distribution -------------------- 70% | Mutant 29% | Scavenger-Gunner Dominant Class ---------------- Mutant | -10/Materials Scavenger-Gunner | -10/Subcaves Resources | -11 -10 -10 ----------- Run | Yrd Mat Sub Matter Collected 657 | 265 262 130 Remotely . | . . . Salvage Created 810 | 76 582 152 Parts 72 | 12 48 12 Haulers Intercepted 1 | . 1 . Recyclers Shooed 1 | . 1 . Parts Field Recycled . | . . . Retrieved Matter . | . . . Parts Self-Destructed 5 | . . 5 Prevented . | . . . Kills | -11 -10 -10 ------- Run | Yrd Mat Sub Combat Hostiles Destroyed 26 | . 18 8 Guns 19 | . 16 3 Cannons 2 | . 2 . AOE 5 | . . 5 Classes Destroyed 10 | 1 7 2 Worker 1 | . 1 . Builder 1 | . 1 . Tunneler 4 | 4 . . Hauler 1 | . 1 . Operator 2 | . 2 . Watcher 2 | . 2 . Swarmer 15 | . 12 3 Grunt 6 | . 6 . Artisan 1 | . . 1 Subdweller 5 | . . 5 Best Kill Streak 6 | 1 6 4 Combat Bots Only 4 | . 3 4 Max Kills in Single Turn 1 | 1 1 1 Gunslinging . | . . . Exploded 1 | . . 1 Melee . | . . . Uniques/NPCs Destroyed . | . . . Combat | -11 -10 -10 -------- Run | Yrd Mat Sub Hostile Shots Fired 134 | . 109 25 Missed 44 | . 35 9 Damage Taken 1261 | . 667 594 Core 260 | . 89 171 Absorbed by Shields . | . . . Core Remaining (%) 100 | 100 . . Volleys Fired 93 | 11 58 24 Largest 3 | 2 2 3 Hottest 100 | 60 60 100 Shots Fired 159 | 22 103 34 Gun 124 | 22 92 10 Cannon 16 | . 11 5 Launcher 19 | . . 19 Special . | . . . Kinetic 68 | 11 47 10 Thermal 72 | 11 56 5 Explosive 19 | . . 19 Electromagnetic . | . . . Robot Hit Streak 9 | 4 9 6 Robot Miss Streak 6 | 6 3 2 Penetration Max . | . . . Secondary Targets 2 | . 2 . Max Gunslinging Chain 1 | . 1 . Shots Hit Robots 90 | 10 65 15 Core Hits 56 | 4 34 18 Critical Kills . | . . . Critical Parts Destroyed . | . . . Critical Strikes . | . . . Melee Attacks . | . . . Impact . | . . . Slashing . | . . . Piercing . | . . . Sneak Attacks . | . . . Combat Hostiles . | . . . Follow-up Attacks . | . . . Damage Inflicted 1582 | 118 772 692 Guns 823 | 115 646 62 Cannons 157 | . 121 36 Explosions 594 | . . 594 Melee . | . . . Ramming 8 | 3 5 . Kinetic 392 | 48 282 62 Thermal 588 | 67 485 36 Explosive 594 | . . 594 Electromagnetic . | . . . Impact . | . . . Slashing . | . . . Piercing . | . . . Highest Corruption . | . . . Average Corruption . | . . . Corruption Purged . | . . . Corruption Blocked . | . . . Overload Shots . | . . . Overflow Damage 7 | . 7 . Projectiles 7 | . 7 . Explosions . | . . . Melee . | . . . Knockbacks . | . . . Impact . | . . . Kinetic . | . . . Secondary . | . . . Self-Inflicted Damage 31 | . . 31 Shots 1 | . . 1 Rammed . | . . . Targets Rammed 3 | 1 2 . Kicked 3 | 1 2 . Crushed . | . . . Highest Temperature 118 | . 118 20 Average Temperature 28 | . 29 15 Received Heat Transfer 159 | . 138 21 Siege Activations . | . . . Robots Corrupted . | . . . Combat Hostiles . | . . . Parts Fried . | . . . Impact Corruptions . | . . . Robots Melted . | . . . Combat Hostiles . | . . . Parts Melted . | . . . Heat Transferred 1308 | 150 1084 74 Parts Sabotaged . | . . . Parts Stolen . | . . . Parts Stripped . | . . . Power Chain Reactions . | . . . Alert | -11 -10 -10 ------- Run | Yrd Mat Sub Peak Influence 327 | 20 327 . Initial 13 | . 13 . Average 142 | 9 161 . Maximum Alert Level 1 | . 1 . Low Security (%) 67 | 100 62 . Level 1 32 | . 37 . Level 2 . | . . . Level 3 . | . . . Level 4 . | . . . Level 5 . | . . . High Security . | . . . Max Security . | . . . Squads Dispatched 4 | . 4 . Investigation 1 | . 1 . Extermination . | . . . Reinforcement 3 | . 3 . Assault . | . . . Garrison . | . . . Intercept . | . . . Searches Triggered . | . . . Construction Impeded . | . . . Haulers Reinforced . | . . . Active Scanning Responses . | . . . Cargo Convoy Interrupts . | . . . Stealth | -11 -10 -10 --------- Run | Yrd Mat Sub Distress Signals 1 | . 1 . Communications Jammed . | . . . Distress Signals . | . . . Times Spotted 39 | . 30 9 Peak Tracking Total 3 | . 3 3 Tactical Retreats 4 | . 3 1 Traps | -11 -10 -10 ------- Run | Yrd Mat Sub Traps Triggered 4 | . 2 2 Indirectly . | . . . Trap Hack Attempts . | . . . Triggered . | . . . Disarmed . | . . . Reprogrammed . | . . . Reused . | . . . Traps Extracted . | . . . Installed . | . . . Triggered . | . . . Machines | -11 -10 -10 ---------- Run | Yrd Mat Sub Machines Disabled . | . . . Max in Single Turn . | . . . Machines Repaired . | . . . Machines Dismantled . | . . . Machines Sabotaged . | . . . Overloaded Fab Kills . | . . . Hacking | -11 -10 -10 --------- Run | Yrd Mat Sub Machines Accessed 3 | . 3 . Terminals 2 | . 2 . Fabricators . | . . . Repair Stations 1 | . 1 . Recycling Units . | . . . Scanalyzers . | . . . Garrison Access . | . . . Total Hacks 7 | . 7 . Successful 3 | . 3 . Failed 4 | . 4 . Catastrophic . | . . . Database Lockouts . | . . . Manual . | . . . Terminals 4 | . 4 . Fabricators . | . . . Repair Stations 3 | . 3 . Recycling Units . | . . . Scanalyzers . | . . . Garrison Access . | . . . Terminal Hacks 2 | . 2 . Recall Investigation 1 | . 1 . Hauler Manifests 1 | . 1 . Fabricator Hacks . | . . . Repair Station Hacks 1 | . 1 . Scan Component 1 | . 1 . Recycling Unit Hacks . | . . . Scanalyzer . | . . . Garrison Access Hacks . | . . . Unauthorized Hacks . | . . . Terminals . | . . . Fabricators . | . . . Repair Stations . | . . . Recycling Units . | . . . Scanalyzers . | . . . Garrison Access . | . . . Data Cores Recovered . | . . . Used . | . . . Hacking Detections 3 | . 3 . Full Trace Events . | . . . Feedback Events . | . . . Feedback Blocked . | . . . Robot Schematics Acquired . | . . . Robots Built . | . . . Authchips . | . . . Time . | . . . Total Robot Build Rating . | . . . Part Schematics Acquired . | . . . Parts Built . | . . . Authchips . | . . . Time . | . . . Total Part Build Rating . | . . . Parts Repaired . | . . . Time . | . . . Parts Recycled . | . . . Recycled Matter . | . . . Retrieved Matter . | . . . Retrieved Components . | . . . Parts Scanalyzed . | . . . Part Schematics Acquired . | . . . Parts Damaged . | . . . Bothacking | -11 -10 -10 ------------ Run | Yrd Mat Sub Used RIF Installer . | . . . Robots Hacked . | . . . Non-combat . | . . . Combat . | . . . Robot Hacks Applied . | . . . Relay Couplers Released . | . . . Fabnet Peak Effective % . | . . . Robots Rewired . | . . . Allies Hacked . | . . . Hacks Repelled . | . . . Allies | -11 -10 -10 -------- Run | Yrd Mat Sub Total Allies . | . . . Largest Group . | . . . Highest-Rated Group . | . . . Highest-Rated Ally . | . . . Total Orders . | . . . Ally Attacks . | . . . Total Damage . | . . . Kills . | . . . Allies Corrupted . | . . . Allies Melted . | . . . Intel | -11 -10 -10 ------- Run | Yrd Mat Sub Robot Analysis Total . | . . . Derelict Logs Recovered . | . . . Drone Launches . | . . . Drone Recoveries . | . . . Exploration | -11 -10 -10 ------------- Run | Yrd Mat Sub Turns Passed 3199 | 286 1932 981 Spaces Moved 1512 | 190 827 495 Core 20 | 20 . . Treads . | . . . Legs 1492 | 170 827 495 Wheels . | . . . Hover . | . . . Flight . | . . . Fastest Speed 50 | 50 120 120 Average Speed 141 | 120 120 185 Slowest Speed 250 | 250 190 190 Overloaded Moves . | . . . Propulsion Burnouts . | . . . Robots Hopped . | . . . Cave-ins Triggered 1 | . . 1 Exploration Rate (%) 42 | 7 94 25 Regions Visited 2 Branch Regions 1 Pre-discovered Areas . | . . . Known Exits Taken . | . . . Unknown Exits Taken 2 | 1 1 . Scrap Searched . | . . . Spaces Dug 11 | . . 11 Terrain Destroyed 76 | . . 76 Melee . | . . . Projectile . | . . . AOE 76 | . . 76 Terrain Rammed . | . . . Walls Destroyed . | . . . Machines Disabled . | . . . Actions | -11 -10 -10 --------- Run | Yrd Mat Sub Total 2422 | 225 1668 529 Wait 752 | . 749 3 Move 1510 | 189 826 495 Hop . | . . . Pick Up 24 | 12 9 3 Fast Attach 8 | 7 1 . Attach 4 | . 2 2 Detach . | . . . Swap 11 | . 10 1 Drop 17 | 5 11 1 Fire 93 | 11 58 24 Melee . | . . . Ram . | . . . Kick 3 | 1 2 . Crush . | . . . Escape Stasis . | . . . Rewire . | . . . Trap . | . . . Miscellaneous . | . . . Route ------- -11/Scrapyard -10/Materials (discovered 5 exits: [*Mat x3] / [*Min] / [*Sub]) -10/Subcaves History --------- Turn | Location | Event 7 | -11/Scrapyard | Discovered new exit (range 15) 287 | -11/Scrapyard | Entered Materials 300 | -10/Materials | Build established: Mutant 418 | -10/Materials | Discovered new exit (range 14) 828 | -10/Materials | Discovered new exit (range 8) 1325 | -10/Materials | Discovered new exit (range 15) 1586 | -10/Materials | Discovered new exit (range 5) 1765 | -10/Materials | Discovered new exit (range 9) 2219 | -10/Materials | Entered Subcaves 2240 | -10/Subcaves | A Subdweller sparked back to life 2245 | -10/Subcaves | Core integrity fell below 50% 2257 | -10/Subcaves | Ambushed by Subdweller buried in earth 2279 | -10/Subcaves | Found Prototype Protection 2280 | -10/Subcaves | Identified Gun Armor 2281 | -10/Subcaves | Attached Gun Armor, gained temporary slots: Weapon x2 2570 | -10/Subcaves | Build established: Scavenger-Gunner 3193 | -10/Subcaves | Ambushed by angry Subdweller bent on revenge 3201 | -10/Subcaves | Crushed by falling debris 3201 | -10/Subcaves | Smashed by cave-in Last Messages --------------- 02646_ Critical hit (Impale). 02680_ Triggered Piercing Trap. 02680_ Spikes shoot up from the floor. 02680_ Critical hit (Impale). 02698_ Subatomizers dissect the Disposable Heat Sink. 03068_ The unstable cave ceiling collapses. 03077_ PO-2Q9(u) builds Twisted Machinery. 03170_ The unstable cave ceiling collapses. 03171_ PO-2Q9(u) tweaks Twisted Machinery. 03192_ PO-2Q9(u) cries out in pain. 03192_ PO-2Q9(u) destroyed. 03193_ 2D-RVJ(R) angrily emerges from the Twisted Machinery. 03193_ 2D-RVJ(R): "ECOKILL!" 03194_ Subatomizers dissect the Wheel. 03200_ The unstable cave ceiling collapses. 03200_ 2D-RVJ(R) destroyed. 03201_ The unstable cave ceiling collapses. 03201_ Crushed by falling debris. 03201_ Grenade Launcher destroyed. 03201_ System corrupted by crushing effect (+4). Map ----- +----------------------------------------------------+ | ##????# #????????????????????????????????? | | %#????### #????????????????????????????????? | | ## ##??????# #????????????????????????????????? | | ## ###?????###????????????????????????????????? | | ## ####?????????????????????????????????????? | | ### ##????????????????????????????????????? | | ??# #????????????????????????????????????? | | ?## ##### #????????????????????????????????????? | | ## ##### ##???????????????????????????????????? | | # ##??????????????????????????????????? | | #??????????????????????????????????? | | ###??????????????????????????????????? | | ## ##?????????????????????????????????? | | #### #?????????????????????????????????? | | #??# #?????????????????????????????????? | | #### #???????#?#######??????????????????? | | #######? ##"""""#??????????????????? | | # ## """ """#??????????????????? | | ### "#???????????????????? | | """ & #????????????????????? | | # """ % ###??????????????????? | | # "u" " & #??????????????????? | | ## ### #"#" " #??????????????????? | | ## #?###""= " ##?????????????????? | | ### #?# ## # #?????????????????? | | ## ####?# #?##### @#"" #?????????????????? | | ######????####?????## # ##?????????????????? | | #####???????????????######## #??????????????????? | | ##????????????????????##" #??????????????????? | | #???????????????????##"" ##?????????????????? | | #???????????????????# "" #?????????????????? | | #??????????????????# #?????????????????? | | #??????????????????## #?????????????????? | | ##???????????????????### #?????????????????? | | ##??????????????????????## #?????????????????? | | # #????????????????????????##"#?????????????????? | | ?###?????????????????????????###?????????????????? | | ?????????????????????????????????????????????????? | | ?????????????????????????????????????????????????? | | ?????????????????????????????????????????????????? | | ?????????????????????????????????????????????????? | | ?????????????????????????????????????????????????? | | ?????????????????????????????????????????????????? | | ?????????????????????????????????????????????????? | | ?????????????????????????????????????????????????? | | ?????????????????????????????????????????????????? | | ?????????????????????????????????????????????????? | | ?????????????????????????????????????????????????? | | ?????????????????????????????????????????????????? | | ?????????????????????????????????????????????????? | +----------------------------------------------------+ Best States ------------- Heat Dissipation 25 Energy Generation 10 Energy Capacity 250 Matter Stores 300 Matter Capacity 300 Sight Range 16 Terrain Scan Density 10 Armor Coverage 60 Evasion (%) 55 Item Schematics ----------------- None Robot Schematics ------------------ None Fabricated ------------ Nothing Alien Tech Used ----------------- None Achievements -------------- Risk Taker Challenges ------------ None Game ------ Seed FocalAdvancedStripper Manual? 0 Play Time 00:42:25 Cumulative 3.7 hours Start 2024.08.11 @ 00:48:19 End 2024.08.11 @ 01:55:00 Sessions 1 Manual Loads 0 Difficulty Rogue Special Mode None Game No. 7 Rogue 7 Adventurer 0 Explorer 0 Win Type - Total 0 Types 0/0/0/0/0/0/0/0/0 Lore% 12 Gallery% 5 Achievement% 8 Wizard Run 0 Options --------- Layout 0 ASCII 0 Keyboard 0 Movement Arrows Keybinds 0 Fullscreen 2 Font 24/Smallcaps Map View 76x50 Zoom Use 0% Tactical HUD 1 Map Filters NONE Filters NONE Steam 1 RUN: fe5fac45-59ce-4f17-b2f9-01e352ce5922